[Event "Live Chess"]
[Site "Chess.com"]
[Date "2023.05.21"]
[Round "-"]
[White "WelshTiger"]
[Black "CeladonFish"]
[Result "1-0"]
[WhiteElo "2358"]
[BlackElo "1117"]
[TimeControl "300"]
[EndTime "16:27:50 PDT"]
[Termination "WelshTiger won by checkmate"]

1. e4 {[%clk 0:04:58.7]} 1... d6 {[%clk 0:04:57.7]} 2. d4 {[%clk 0:04:57.3]}
2... Nf6 {[%clk 0:04:55.2]} 3. Nc3 {[%clk 0:04:56.7]} 3... g6 {[%clk 0:04:53.9]}
4. f4 {[%clk 0:04:56.3]} 4... Bg7 {[%clk 0:04:52.4]} 5. Nf3 {[%clk 0:04:56.1]}
5... O-O {[%clk 0:04:50.7]} 6. Bd3 {[%clk 0:04:54.7]} 6... Bg4 {[%clk
0:04:43.7]} 7. h3 {[%clk 0:04:52.9]} 7... Bxf3 {[%clk 0:04:42.6]} 8. Qxf3 {[%clk
0:04:52.8]} 8... Nbd7 {[%clk 0:04:40.7]} 9. O-O {[%clk 0:04:49.4]} 9... c5
{[%clk 0:04:39.6]} 10. d5 {[%clk 0:04:43]} 10... a6 {[%clk 0:04:32.4]} 11. a4
{[%clk 0:04:41.5]} 11... Qa5 {[%clk 0:04:28.1]} 12. Bd2 {[%clk 0:04:40.1]} 12...
Qb4 {[%clk 0:04:23.5]} 13. b3 {[%clk 0:04:36.9]} 13... b5 {[%clk 0:04:14.4]} 14.
Qf2 {[%clk 0:04:32.5]} 14... bxa4 {[%clk 0:04:12.6]} 15. Nxa4 {[%clk 0:04:30.3]}
15... Qd4 {[%clk 0:04:10]} 16. Qxd4 {[%clk 0:04:28.7]} 16... cxd4 {[%clk
0:04:09.2]} 17. g4 {[%clk 0:04:11.6]} 17... e5 {[%clk 0:04:04.7]} 18. f5 {[%clk
0:04:09.6]} 18... Nc5 {[%clk 0:03:46.2]} 19. Nxc5 {[%clk 0:04:07.3]} 19... dxc5
{[%clk 0:03:45.9]} 20. g5 {[%clk 0:04:04.9]} 20... Nh5 {[%clk 0:03:40.8]} 21. f6
{[%clk 0:04:04.4]} 21... Bh8 {[%clk 0:03:39.2]} 22. Rxa6 {[%clk 0:03:56.7]}
22... Rxa6 {[%clk 0:03:37.2]} 23. Bxa6 {[%clk 0:03:56.4]} 23... Ra8 {[%clk
0:03:34.4]} 24. Bd3 {[%clk 0:03:49.1]} 24... Ra2 {[%clk 0:03:31.4]} 25. Kg2
{[%clk 0:03:44.5]} 25... Kf8 {[%clk 0:03:24]} 26. Kf3 {[%clk 0:03:41.4]} 26...
Ke8 {[%clk 0:03:22.7]} 27. h4 {[%clk 0:03:40.8]} 27... Kd7 {[%clk 0:03:20.9]}
28. Rc1 {[%clk 0:03:31.4]} 28... Nxf6 {[%clk 0:03:08.4]} 29. gxf6 {[%clk
0:03:29.7]} 29... Bxf6 {[%clk 0:03:08]} 30. Bg5 {[%clk 0:03:29]} 30... Bxg5
{[%clk 0:03:06.4]} 31. hxg5 {[%clk 0:03:28]} 31... Ke7 {[%clk 0:03:05.1]} 32.
Rh1 {[%clk 0:03:26.3]} 32... f6 {[%clk 0:03:02.7]} 33. gxf6+ {[%clk 0:03:24.2]}
33... Kxf6 {[%clk 0:03:01.9]} 34. Rxh7 {[%clk 0:03:23.7]} 34... Kg5 {[%clk
0:03:01.1]} 35. Rc7 {[%clk 0:03:21.4]} 35... Kh4 {[%clk 0:02:59.7]} 36. Rxc5
{[%clk 0:03:18.5]} 36... g5 {[%clk 0:02:59]} 37. d6 {[%clk 0:03:14.4]} 37... g4+
{[%clk 0:02:57.8]} 38. Kg2 {[%clk 0:03:13.7]} 38... g3 {[%clk 0:02:53.8]} 39.
Rxe5 {[%clk 0:03:11.9]} 39... Ra1 {[%clk 0:02:49.3]} 40. d7 {[%clk 0:03:08.3]}
40... Rg1+ {[%clk 0:02:46.6]} 41. Kxg1 {[%clk 0:03:06.8]} 41... Kh3 {[%clk
0:02:46.3]} 42. d8=Q {[%clk 0:03:03.5]} 42... g2 {[%clk 0:02:44.5]} 43. Rh5+
{[%clk 0:02:58.4]} 43... Kg3 {[%clk 0:02:44.1]} 44. Qg5+ {[%clk 0:02:55.2]}
44... Kf3 {[%clk 0:02:41.7]} 45. Rh3# {[%clk 0:02:54.5]} 1-0

[Event "Live Chess"]
[Site "Chess.com"]
[Date "2023.05.21"]
[Round "-"]
[White "laminaaprod"]
[Black "smoggyrabbit"]
[Result "0-1"]
[WhiteElo "2234"]
[BlackElo "1727"]
[TimeControl "300"]
[EndTime "16:28:06 PDT"]
[Termination "smoggyrabbit won by resignation"]

1. d4 {[%clk 0:04:52.8]} 1... e6 {[%clk 0:04:59.1]} 2. c4 {[%clk 0:04:50.9]}
2... f5 {[%clk 0:04:57.4]} 3. Nf3 {[%clk 0:04:50.5]} 3... Nf6 {[%clk 0:04:56.3]}
4. Nc3 {[%clk 0:04:49.2]} 4... Bb4 {[%clk 0:04:54.5]} 5. Qc2 {[%clk 0:04:44.4]}
5... b6 {[%clk 0:04:50.4]} 6. e3 {[%clk 0:04:38.3]} 6... Bb7 {[%clk 0:04:49.1]}
7. Be2 {[%clk 0:04:34.2]} 7... O-O {[%clk 0:04:48.1]} 8. a3 {[%clk 0:04:32.1]}
8... Bxc3+ {[%clk 0:04:47]} 9. Qxc3 {[%clk 0:04:17.8]} 9... d6 {[%clk 0:04:46]}
10. b4 {[%clk 0:04:14.5]} 10... Nbd7 {[%clk 0:04:15.6]} 11. Bb2 {[%clk
0:04:09.4]} 11... Ne4 {[%clk 0:04:13.2]} 12. Qc2 {[%clk 0:04:03.3]} 12... Ndf6
{[%clk 0:03:53.6]} 13. Rd1 {[%clk 0:03:55.2]} 13... Qe7 {[%clk 0:03:44.4]} 14.
O-O {[%clk 0:03:27.2]} 14... Rad8 {[%clk 0:03:21.9]} 15. Nd2 {[%clk 0:03:15.7]}
15... Nxd2 {[%clk 0:03:09.8]} 16. Qxd2 {[%clk 0:03:06]} 16... Ne4 {[%clk
0:03:07.5]} 17. Qc2 {[%clk 0:02:50.3]} 17... Qg5 {[%clk 0:03:00.4]} 18. f3
{[%clk 0:02:47.6]} 18... Qxe3+ {[%clk 0:02:58.4]} 19. Kh1 {[%clk 0:02:41.5]}
19... Ng3+ {[%clk 0:02:38.2]} 20. hxg3 {[%clk 0:02:31]} 20... Rf6 {[%clk
0:02:37]} 0-1

[Event "Live Chess"]
[Site "Chess.com"]
[Date "2023.05.21"]
[Round "-"]
[White "EdenHazard8"]
[Black "CheckThis4"]
[Result "0-1"]
[WhiteElo "2004"]
[BlackElo "2541"]
[TimeControl "300"]
[EndTime "16:28:12 PDT"]
[Termination "CheckThis4 won by resignation"]

1. d4 {[%clk 0:04:57.5]} 1... Nf6 {[%clk 0:04:56.8]} 2. c4 {[%clk 0:04:55.1]}
2... e5 {[%clk 0:04:55.3]} 3. dxe5 {[%clk 0:04:52.6]} 3... Ng4 {[%clk
0:04:53.4]} 4. Nf3 {[%clk 0:04:52]} 4... Bc5 {[%clk 0:04:51.3]} 5. e3 {[%clk
0:04:50.1]} 5... Nc6 {[%clk 0:04:50.2]} 6. Qd5 {[%clk 0:04:46.1]} 6... Qe7
{[%clk 0:04:46.8]} 7. Nc3 {[%clk 0:04:44.9]} 7... Ngxe5 {[%clk 0:04:28.7]} 8.
Nxe5 {[%clk 0:04:41.5]} 8... Nxe5 {[%clk 0:04:27.4]} 9. Be2 {[%clk 0:04:27.2]}
9... O-O {[%clk 0:04:20.8]} 10. O-O {[%clk 0:04:25.5]} 10... c6 {[%clk
0:04:14.9]} 11. Qe4 {[%clk 0:04:24.3]} 11... f5 {[%clk 0:04:08.3]} 12. Qc2
{[%clk 0:04:21.8]} 12... d6 {[%clk 0:04:04.2]} 13. a3 {[%clk 0:04:20.5]} 13...
a5 {[%clk 0:04:02.2]} 14. b3 {[%clk 0:04:13.3]} 14... Bd7 {[%clk 0:03:45.4]} 15.
Bb2 {[%clk 0:04:10.4]} 15... Rae8 {[%clk 0:03:43.8]} 16. Na4 {[%clk 0:04:08.6]}
16... Ba7 {[%clk 0:03:41.4]} 17. Rad1 {[%clk 0:03:59.6]} 17... f4 {[%clk
0:03:34.5]} 18. c5 {[%clk 0:03:56.2]} 18... fxe3 {[%clk 0:03:19.4]} 19. cxd6
{[%clk 0:03:54.4]} 19... exf2+ {[%clk 0:03:16.9]} 20. Kh1 {[%clk 0:03:53.8]}
20... Qh4 {[%clk 0:03:01.1]} 21. Nc5 {[%clk 0:03:44.8]} 21... Bxc5 {[%clk
0:02:51.4]} 22. Qxc5 {[%clk 0:03:44.7]} 22... Rf5 {[%clk 0:02:47.7]} 23. Qd4
{[%clk 0:03:40]} 23... Rf4 {[%clk 0:02:26.5]} 24. Qc3 {[%clk 0:03:11.6]} 24...
Qf6 {[%clk 0:02:06.1]} 25. Qxa5 {[%clk 0:02:53.9]} 25... Rh4 {[%clk 0:01:53.6]}
26. Bc4+ {[%clk 0:02:21.6]} 26... Kh8 {[%clk 0:01:46.6]} 27. Bxe5 {[%clk
0:01:59.8]} 27... Rxe5 {[%clk 0:01:33.8]} 28. Qc3 {[%clk 0:01:57.7]} 28... Rxh2+
{[%clk 0:01:20.7]} 29. Kxh2 {[%clk 0:01:54.4]} 29... Rh5+ {[%clk 0:01:09.2]} 30.
Qh3 {[%clk 0:01:53.7]} 30... Bxh3 {[%clk 0:01:06.7]} 0-1

[Event "Live Chess"]
[Site "Chess.com"]
[Date "2023.05.21"]
[Round "-"]
[White "Conradical12"]
[Black "KGreenGator"]
[Result "0-1"]
[WhiteElo "1602"]
[BlackElo "1756"]
[TimeControl "300"]
[EndTime "16:28:15 PDT"]
[Termination "KGreenGator won by resignation"]

1. e4 {[%clk 0:04:58.7]} 1... c5 {[%clk 0:04:58.9]} 2. Nc3 {[%clk 0:04:57.1]}
2... Nc6 {[%clk 0:04:58.4]} 3. Nf3 {[%clk 0:04:55.9]} 3... e6 {[%clk 0:04:56.8]}
4. d4 {[%clk 0:04:53.2]} 4... cxd4 {[%clk 0:04:55.5]} 5. Nxd4 {[%clk 0:04:52.5]}
5... Nf6 {[%clk 0:04:52]} 6. Nxc6 {[%clk 0:04:44.6]} 6... bxc6 {[%clk
0:04:50.6]} 7. e5 {[%clk 0:04:43.8]} 7... Nd5 {[%clk 0:04:49.4]} 8. Nxd5 {[%clk
0:04:41.4]} 8... cxd5 {[%clk 0:04:48.7]} 9. Bd3 {[%clk 0:04:39]} 9... Qc7 {[%clk
0:04:46.6]} 10. Bf4 {[%clk 0:04:38]} 10... d6 {[%clk 0:04:39.3]} 11. exd6 {[%clk
0:04:35.9]} 11... Bxd6 {[%clk 0:04:37.7]} 12. Bxd6 {[%clk 0:04:35.4]} 12... Qxd6
{[%clk 0:04:36.3]} 13. Qg4 {[%clk 0:04:34.9]} 13... O-O {[%clk 0:04:33.2]} 14.
h4 {[%clk 0:04:31.2]} 14... Qe5+ {[%clk 0:04:31.6]} 15. Be2 {[%clk 0:04:29.3]}
15... Qxb2 {[%clk 0:04:26.4]} 16. Rd1 {[%clk 0:04:27.5]} 16... Qxc2 {[%clk
0:04:25]} 17. Kf1 {[%clk 0:04:25.8]} 17... Qxa2 {[%clk 0:04:23]} 18. h5 {[%clk
0:04:22.4]} 18... Qb2 {[%clk 0:04:18.6]} 19. h6 {[%clk 0:04:20.3]} 19... g6
{[%clk 0:04:17.8]} 20. Rh3 {[%clk 0:04:10.1]} 20... e5 {[%clk 0:04:15.8]} 21.
Qg5 {[%clk 0:04:04]} 21... f6 {[%clk 0:04:02.4]} 22. Qg3 {[%clk 0:03:50.4]}
22... Bxh3 {[%clk 0:03:59.7]} 23. Bh5 {[%clk 0:03:48.1]} 23... Bf5 {[%clk
0:03:56.7]} 24. Qf3 {[%clk 0:03:42.1]} 24... Qb5+ {[%clk 0:03:48]} 25. Kg1
{[%clk 0:03:38.4]} 25... d4 {[%clk 0:03:42.7]} 26. g4 {[%clk 0:03:32.5]} 26...
Be6 {[%clk 0:03:37.9]} 27. Bxg6 {[%clk 0:03:31]} 27... hxg6 {[%clk 0:03:36.4]}
28. Qe4 {[%clk 0:03:29.9]} 28... Kh7 {[%clk 0:03:34.2]} 29. Kg2 {[%clk
0:03:26.7]} 29... Bd5 {[%clk 0:03:33.2]} 0-1

[Event "Live Chess"]
[Site "Chess.com"]
[Date "2023.05.21"]
[Round "-"]
[White "AbilifyXL"]
[Black "Pablo_dmp"]
[Result "0-1"]
[WhiteElo "1969"]
[BlackElo "1898"]
[TimeControl "300"]
[EndTime "16:28:18 PDT"]
[Termination "Pablo_dmp won by resignation"]

1. d4 {[%clk 0:04:59.5]} 1... Nf6 {[%clk 0:04:58.7]} 2. c4 {[%clk 0:04:58.8]}
2... e6 {[%clk 0:04:57.5]} 3. Nc3 {[%clk 0:04:58.3]} 3... Bb4 {[%clk 0:04:57]}
4. Qc2 {[%clk 0:04:56.5]} 4... O-O {[%clk 0:04:56]} 5. Nf3 {[%clk 0:04:55.2]}
5... d5 {[%clk 0:04:55.1]} 6. cxd5 {[%clk 0:04:54.3]} 6... exd5 {[%clk 0:04:54]}
7. Bg5 {[%clk 0:04:53.7]} 7... Bg4 {[%clk 0:04:49.9]} 8. Ne5 {[%clk 0:04:51.6]}
8... Bh5 {[%clk 0:04:46.5]} 9. e3 {[%clk 0:04:50.7]} 9... Bg6 {[%clk 0:04:45.2]}
10. Nxg6 {[%clk 0:04:48.8]} 10... fxg6 {[%clk 0:04:42]} 11. Bd3 {[%clk 0:04:48]}
11... Qd6 {[%clk 0:04:38.7]} 12. O-O {[%clk 0:04:46.2]} 12... Nbd7 {[%clk
0:04:37.1]} 13. a3 {[%clk 0:04:44.5]} 13... Bxc3 {[%clk 0:04:33.9]} 14. Qxc3
{[%clk 0:04:43.4]} 14... c6 {[%clk 0:04:32.4]} 15. b4 {[%clk 0:04:41.9]} 15...
Rae8 {[%clk 0:04:19.9]} 16. Qc2 {[%clk 0:04:40.6]} 16... Ne4 {[%clk 0:04:16.5]}
17. Bf4 {[%clk 0:04:39.4]} 17... Qf6 {[%clk 0:04:04.1]} 18. Rab1 {[%clk
0:04:36.8]} 18... g5 {[%clk 0:04:01]} 19. Bg3 {[%clk 0:04:35.6]} 19... h5 {[%clk
0:03:57.7]} 20. b5 {[%clk 0:04:17.2]} 20... h4 {[%clk 0:03:47.1]} 21. Be5 {[%clk
0:04:10.9]} 21... Nxe5 {[%clk 0:03:43.5]} 22. dxe5 {[%clk 0:04:10.1]} 22... Rxe5
{[%clk 0:03:42.3]} 23. bxc6 {[%clk 0:04:08.4]} 23... bxc6 {[%clk 0:03:42.1]} 24.
Bxe4 {[%clk 0:04:06.5]} 24... Rxe4 {[%clk 0:03:39.3]} 25. Rb7 {[%clk 0:04:03.5]}
25... Rxe3 {[%clk 0:03:31.6]} 26. Rxa7 {[%clk 0:03:58]} 26... Rc3 {[%clk
0:03:19.7]} 27. Qe2 {[%clk 0:03:54.1]} 27... Rf7 {[%clk 0:02:57.4]} 28. Qe8+
{[%clk 0:03:47.3]} 28... Rf8 {[%clk 0:02:57]} 29. Qe2 {[%clk 0:03:45.7]} 29...
Rc4 {[%clk 0:02:46.3]} 30. h3 {[%clk 0:03:40]} 30... Rf4 {[%clk 0:02:42.5]} 31.
a4 {[%clk 0:03:21.9]} 31... Qd6 {[%clk 0:02:33.4]} 32. Qe3 {[%clk 0:03:07.8]}
32... d4 {[%clk 0:02:27.1]} 33. Qe7 {[%clk 0:02:58.7]} 33... Qxe7 {[%clk
0:02:25.6]} 34. Rxe7 {[%clk 0:02:57]} 34... d3 {[%clk 0:02:14]} 35. Rd1 {[%clk
0:02:49.8]} 35... Rxf2 {[%clk 0:02:12]} 36. Rxd3 {[%clk 0:02:48.6]} 36... Rf1+
{[%clk 0:02:10.3]} 37. Kh2 {[%clk 0:02:47.7]} 37... Ra1 {[%clk 0:02:10]} 38.
Rdd7 {[%clk 0:02:46.8]} 38... Rff1 {[%clk 0:02:06.5]} 39. Rxg7+ {[%clk
0:02:45.8]} 39... Kf8 {[%clk 0:02:05.6]} 0-1

[Event "Live Chess"]
[Site "Chess.com"]
[Date "2023.05.21"]
[Round "-"]
[White "Jo1ts"]
[Black "DRS44"]
[Result "1-0"]
[WhiteElo "791"]
[BlackElo "1320"]
[TimeControl "300"]
[EndTime "16:28:22 PDT"]
[Termination "Jo1ts won by resignation"]

1. d4 {[%clk 0:04:58.1]} 1... d5 {[%clk 0:04:36.9]} 2. Bf4 {[%clk 0:04:56.5]}
2... Nf6 {[%clk 0:04:25.5]} 3. Nf3 {[%clk 0:04:55.7]} 3... c5 {[%clk 0:04:10.8]}
4. e3 {[%clk 0:04:54.6]} 4... Nc6 {[%clk 0:04:04.2]} 5. Bb5 {[%clk 0:04:53.7]}
5... a6 {[%clk 0:03:59]} 6. Bxc6+ {[%clk 0:04:50.4]} 6... bxc6 {[%clk
0:03:56.1]} 7. Nbd2 {[%clk 0:04:48.2]} 7... Bf5 {[%clk 0:03:48.7]} 8. c3 {[%clk
0:04:46.7]} 8... e6 {[%clk 0:03:40.5]} 9. Ne5 {[%clk 0:04:46]} 9... Qb6 {[%clk
0:03:24.8]} 10. Rb1 {[%clk 0:04:39.3]} 10... Bd6 {[%clk 0:03:19.1]} 11. O-O
{[%clk 0:04:31.8]} 11... cxd4 {[%clk 0:03:12]} 12. cxd4 {[%clk 0:04:28.1]} 12...
c5 {[%clk 0:03:00]} 13. Rc1 {[%clk 0:04:19.9]} 13... cxd4 {[%clk 0:02:52.7]} 14.
exd4 {[%clk 0:04:17.7]} 14... O-O {[%clk 0:02:49.2]} 15. b3 {[%clk 0:04:14.9]}
15... Rac8 {[%clk 0:02:41.6]} 16. Ndf3 {[%clk 0:04:13.1]} 16... Ne4 {[%clk
0:02:29.1]} 17. Nd7 {[%clk 0:04:02.6]} 17... Qc7 {[%clk 0:02:03.3]} 18. Nxf8
{[%clk 0:04:00.4]} 18... Kxf8 {[%clk 0:01:59.5]} 19. Rxc7 {[%clk 0:03:57.4]} 1-0

[Event "Live Chess"]
[Site "Chess.com"]
[Date "2023.05.21"]
[Round "-"]
[White "jennybobby44"]
[Black "DaveL5678"]
[Result "1-0"]
[WhiteElo "1845"]
[BlackElo "1012"]
[TimeControl "300"]
[EndTime "16:28:56 PDT"]
[Termination "jennybobby44 won on time"]

1. e4 {[%clk 0:04:58.6]} 1... e6 {[%clk 0:04:56.9]} 2. b3 {[%clk 0:04:57.3]}
2... d5 {[%clk 0:04:55.8]} 3. Bb2 {[%clk 0:04:57.1]} 3... f6 {[%clk 0:04:50.5]}
4. Qe2 {[%clk 0:04:55.1]} 4... c6 {[%clk 0:04:36.6]} 5. exd5 {[%clk 0:04:53.5]}
5... cxd5 {[%clk 0:04:35]} 6. g3 {[%clk 0:04:51.2]} 6... Bd7 {[%clk 0:04:32.5]}
7. Bg2 {[%clk 0:04:49.9]} 7... Qb6 {[%clk 0:04:22.9]} 8. Nf3 {[%clk 0:04:46.7]}
8... Bb5 {[%clk 0:04:14]} 9. d3 {[%clk 0:04:45]} 9... Bb4+ {[%clk 0:04:05.3]}
10. c3 {[%clk 0:04:42.5]} 10... Bc5 {[%clk 0:03:54.7]} 11. O-O {[%clk
0:04:36.1]} 11... Nd7 {[%clk 0:03:40.2]} 12. c4 {[%clk 0:04:35]} 12... dxc4
{[%clk 0:03:35.2]} 13. dxc4 {[%clk 0:04:34]} 13... Bc6 {[%clk 0:03:32.2]} 14.
Qxe6+ {[%clk 0:04:32.3]} 14... Ne7 {[%clk 0:03:23.3]} 15. Nc3 {[%clk 0:04:24.7]}
15... Rd8 {[%clk 0:03:11.5]} 16. Nh4 {[%clk 0:04:04.3]} 16... Bxg2 {[%clk
0:02:52]} 17. Qxb6 {[%clk 0:04:03]} 17... Bxb6 {[%clk 0:02:48.4]} 18. Nxg2
{[%clk 0:04:02]} 18... O-O {[%clk 0:02:39.4]} 19. Rfe1 {[%clk 0:03:58.3]} 19...
Nf5 {[%clk 0:02:36.1]} 20. Nd5 {[%clk 0:03:56.2]} 20... Bd4 {[%clk 0:02:24.7]}
21. Bxd4 {[%clk 0:03:52.1]} 21... Nxd4 {[%clk 0:02:21.9]} 22. Ngf4 {[%clk
0:03:50.3]} 22... Nc2 {[%clk 0:02:19.5]} 23. Ne6 {[%clk 0:03:41.1]} 23... Rfe8
{[%clk 0:02:09]} 24. Nxd8 {[%clk 0:03:30.7]} 24... Rxe1+ {[%clk 0:02:06.1]} 25.
Rxe1 {[%clk 0:03:28.1]} 25... Nxe1 {[%clk 0:02:04.8]} 26. Nxb7 {[%clk
0:03:27.3]} 26... Nf3+ {[%clk 0:01:55.7]} 27. Kg2 {[%clk 0:03:25.2]} 27... Nde5
{[%clk 0:01:52.6]} 28. Nc5 {[%clk 0:03:14.1]} 28... Nd4 {[%clk 0:01:44.2]} 29.
h3 {[%clk 0:03:08.9]} 29... Nf5 {[%clk 0:01:33.3]} 30. f4 {[%clk 0:02:59.1]}
30... Nc6 {[%clk 0:01:24.7]} 31. g4 {[%clk 0:02:46.2]} 31... Nd6 {[%clk
0:01:17.1]} 32. Kf3 {[%clk 0:02:41]} 32... Nd4+ {[%clk 0:01:12.7]} 33. Ke3
{[%clk 0:02:38.9]} 33... Nc2+ {[%clk 0:01:08.1]} 34. Kd3 {[%clk 0:02:33.8]}
34... Ne1+ {[%clk 0:01:02.1]} 35. Kc3 {[%clk 0:02:26.4]} 35... Ng2 {[%clk
0:00:53.9]} 36. b4 {[%clk 0:02:16.2]} 36... Kf7 {[%clk 0:00:39.8]} 37. a4 {[%clk
0:02:13]} 37... Ne1 {[%clk 0:00:32.3]} 38. a5 {[%clk 0:02:08.7]} 38... Nf3
{[%clk 0:00:26.5]} 39. a6 {[%clk 0:01:54.6]} 39... g5 {[%clk 0:00:17.6]} 40. f5
{[%clk 0:01:49.4]} 40... Ng1 {[%clk 0:00:13.1]} 41. Nb7 {[%clk 0:01:48.3]} 41...
Ne4+ {[%clk 0:00:06.7]} 42. Kd4 {[%clk 0:01:44.6]} 1-0

[Event "Live Chess"]
[Site "Chess.com"]
[Date "2023.05.21"]
[Round "-"]
[White "Long1968"]
[Black "BJAW87"]
[Result "0-1"]
[WhiteElo "1185"]
[BlackElo "1440"]
[TimeControl "300"]
[EndTime "16:29:26 PDT"]
[Termination "BJAW87 won on time"]

1. e4 {[%clk 0:04:56.7]} 1... c6 {[%clk 0:04:59.2]} 2. d4 {[%clk 0:04:54.1]}
2... d5 {[%clk 0:04:59.1]} 3. e5 {[%clk 0:04:51.2]} 3... Bf5 {[%clk 0:04:55]} 4.
h4 {[%clk 0:04:45.5]} 4... h5 {[%clk 0:04:53.4]} 5. Bd3 {[%clk 0:04:40.1]} 5...
Bxd3 {[%clk 0:04:52.1]} 6. Qxd3 {[%clk 0:04:38]} 6... e6 {[%clk 0:04:51.7]} 7.
Nf3 {[%clk 0:04:25.6]} 7... c5 {[%clk 0:04:50.5]} 8. Be3 {[%clk 0:04:16.3]} 8...
Qb6 {[%clk 0:04:44.5]} 9. Nbd2 {[%clk 0:03:51.4]} 9... Nh6 {[%clk 0:04:29.1]}
10. O-O {[%clk 0:03:42.3]} 10... Nf5 {[%clk 0:04:27.8]} 11. dxc5 {[%clk
0:02:56]} 11... Bxc5 {[%clk 0:04:26]} 12. Bxc5 {[%clk 0:02:47]} 12... Qxc5
{[%clk 0:04:25.9]} 13. Nb3 {[%clk 0:02:32.7]} 13... Qc7 {[%clk 0:04:21]} 14.
Rfe1 {[%clk 0:01:24.9]} 14... Nc6 {[%clk 0:04:16.8]} 15. Rad1 {[%clk 0:01:13.4]}
15... O-O {[%clk 0:04:09.4]} 16. Nbd4 {[%clk 0:00:38.6]} 16... Ncxd4 {[%clk
0:04:05.6]} 17. Nxd4 {[%clk 0:00:34.9]} 17... Nxd4 {[%clk 0:04:04.2]} 18. Qxd4
{[%clk 0:00:32.5]} 18... Qxc2 {[%clk 0:03:56.4]} 19. Rc1 {[%clk 0:00:26.5]}
19... Qg6 {[%clk 0:03:52.4]} 20. Rc7 {[%clk 0:00:20.5]} 20... b6 {[%clk
0:03:47.6]} 21. Rec1 {[%clk 0:00:16.7]} 21... Qe4 {[%clk 0:03:21.1]} 22. Qxe4
{[%clk 0:00:06.6]} 22... dxe4 {[%clk 0:03:21]} 23. Rb7 {[%clk 0:00:02.7]} 23...
Rfd8 {[%clk 0:03:18.2]} 0-1

[Event "Live Chess"]
[Site "Chess.com"]
[Date "2023.05.21"]
[Round "-"]
[White "LL220284LL"]
[Black "whitedjohn"]
[Result "1-0"]
[WhiteElo "2391"]
[BlackElo "1650"]
[TimeControl "300"]
[EndTime "16:29:43 PDT"]
[Termination "LL220284LL won on time"]

1. e3 {[%clk 0:04:58.6]} 1... d5 {[%clk 0:04:57.2]} 2. b3 {[%clk 0:04:57.6]}
2... e5 {[%clk 0:04:54.7]} 3. Bb2 {[%clk 0:04:56.2]} 3... Nc6 {[%clk 0:04:52.8]}
4. Nf3 {[%clk 0:04:53.2]} 4... Bd6 {[%clk 0:04:50.3]} 5. d3 {[%clk 0:04:51.9]}
5... Nf6 {[%clk 0:04:49]} 6. c4 {[%clk 0:04:50.9]} 6... Qe7 {[%clk 0:04:46.7]}
7. Nc3 {[%clk 0:04:49.5]} 7... d4 {[%clk 0:04:41.6]} 8. Nd5 {[%clk 0:04:34.4]}
8... Nxd5 {[%clk 0:04:34.1]} 9. cxd5 {[%clk 0:04:33.5]} 9... Nb4 {[%clk
0:04:26.4]} 10. exd4 {[%clk 0:04:30.4]} 10... exd4+ {[%clk 0:04:23.4]} 11. Be2
{[%clk 0:04:29.4]} 11... Nxd5 {[%clk 0:04:18.2]} 12. O-O {[%clk 0:04:24.6]}
12... Nc3 {[%clk 0:04:12.8]} 13. Bxc3 {[%clk 0:04:21.1]} 13... dxc3 {[%clk
0:04:12.5]} 14. d4 {[%clk 0:04:18.9]} 14... O-O {[%clk 0:04:00.2]} 15. h3 {[%clk
0:04:04.7]} 15... Bf5 {[%clk 0:03:56.9]} 16. Bd3 {[%clk 0:04:02.8]} 16... Bxd3
{[%clk 0:03:52.2]} 17. Qxd3 {[%clk 0:04:02.7]} 17... Bb4 {[%clk 0:03:41.2]} 18.
Rfe1 {[%clk 0:03:57.4]} 18... Qd6 {[%clk 0:03:36.6]} 19. Ne5 {[%clk 0:03:46.4]}
19... Rad8 {[%clk 0:03:28.7]} 20. Re4 {[%clk 0:03:41.9]} 20... Rfe8 {[%clk
0:03:07.5]} 21. a3 {[%clk 0:03:34.4]} 21... Ba5 {[%clk 0:03:03.9]} 22. Nc4
{[%clk 0:03:32.3]} 22... Qa6 {[%clk 0:02:55.2]} 23. Rxe8+ {[%clk 0:03:25.3]}
23... Rxe8 {[%clk 0:02:52.6]} 24. Rc1 {[%clk 0:03:16.2]} 24... g6 {[%clk
0:02:35.6]} 25. b4 {[%clk 0:03:10]} 25... Bb6 {[%clk 0:02:33.9]} 26. Rxc3 {[%clk
0:03:07.7]} 26... Rd8 {[%clk 0:02:25.6]} 27. d5 {[%clk 0:03:04.9]} 27... c6
{[%clk 0:02:09]} 28. d6 {[%clk 0:03:00.4]} 28... Qb5 {[%clk 0:01:52.6]} 29. Qf3
{[%clk 0:02:50.3]} 29... Bd4 {[%clk 0:01:33.2]} 30. Rc2 {[%clk 0:02:43.4]} 30...
Bg7 {[%clk 0:01:22.2]} 31. Qe4 {[%clk 0:02:34.6]} 31... Qd5 {[%clk 0:01:17]} 32.
Re2 {[%clk 0:02:28]} 32... Qxe4 {[%clk 0:01:12.6]} 33. Rxe4 {[%clk 0:02:27.9]}
33... b5 {[%clk 0:01:08.7]} 34. Na5 {[%clk 0:02:27.1]} 34... Rxd6 {[%clk
0:01:05.6]} 35. Re8+ {[%clk 0:02:26]} 35... Bf8 {[%clk 0:01:03.8]} 36. Nb7
{[%clk 0:02:20.2]} 36... Rd7 {[%clk 0:00:57.8]} 37. Nc5 {[%clk 0:02:18.5]} 37...
Rc7 {[%clk 0:00:54.5]} 38. Rd8 {[%clk 0:02:11]} 38... Kg7 {[%clk 0:00:48.6]} 39.
Ne4 {[%clk 0:02:09.6]} 39... f5 {[%clk 0:00:41.9]} 40. Nd2 {[%clk 0:02:01.4]}
40... Kf7 {[%clk 0:00:34.6]} 41. Nf3 {[%clk 0:01:59.7]} 41... Ke7 {[%clk
0:00:31.3]} 42. Ra8 {[%clk 0:01:58.2]} 42... Bg7 {[%clk 0:00:26.2]} 43. Kf1
{[%clk 0:01:49.5]} 43... h6 {[%clk 0:00:25.1]} 44. Ke2 {[%clk 0:01:48.5]} 44...
Kd6 {[%clk 0:00:22.6]} 45. Kd3 {[%clk 0:01:47.7]} 45... Kd5 {[%clk 0:00:21.6]}
46. Rg8 {[%clk 0:01:45.9]} 46... Re7 {[%clk 0:00:17.5]} 47. Nd2 {[%clk
0:01:43.4]} 47... g5 {[%clk 0:00:15]} 48. Rd8+ {[%clk 0:01:42.5]} 48... Ke6
{[%clk 0:00:12]} 49. Nb3 {[%clk 0:01:41.8]} 49... Rd7+ {[%clk 0:00:08.2]} 50.
Rxd7 {[%clk 0:01:40.9]} 50... Kxd7 {[%clk 0:00:06.6]} 51. Nc5+ {[%clk
0:01:40.8]} 51... Ke7 {[%clk 0:00:02.9]} 52. g4 {[%clk 0:01:40.7]} 52... fxg4
{[%clk 0:00:00.2]} 53. hxg4 {[%clk 0:01:40.6]} 1-0